[Event "Kvibergspelen op"]
[Site "Kvibergspelen SWE"]
[Date "2019.09.28"]
[Round "5.1"]
[White "Golubka, Petro"]
[Black "Hector, Jonny"]
[Result "0-1"]
[ECO "C45"]
[WhiteElo "2479"]
[BlackElo "2477"]
[WhiteFideId "-1"]
[BlackFideId "-1"]
[PlyCount "62"]
[GameId "2129404755009095"]
[EventDate "2019.09.27"]
[EventType "swiss"]
[EventRounds "8"]
[EventCountry "SWE"]
[SourceTitle "10 Days #592"]
[Source "ChessMix"]
[SourceDate "2019.10.01"]
[SourceVersion "1"]
[SourceVersionDate "2019.10.01"]
[SourceQuality "1"]
[TimeControl "15/90+5:0"]
[WhiteClock "0:18:31"]
[BlackClock "0:23:19"]

1. e4 {[%emt 0:00:00]} e5 {[%emt 0:00:00]} 2. Nf3 {[%emt 0:00:00]} Nc6 {[%emt 0:00:00]} 3. d4 {[%emt 0:00:00]} exd4 {[%emt 0:00:00]} 4. Nxd4 {[%emt 0:00:00]} Nf6 {[%emt 0:00:00]} 5. Nxc6 {[%emt 0:00:00]} bxc6 {[%emt 0:00:00]} 6. e5 {[%emt 0:00:00]} Qe7 {[%emt 0:00:00]} 7. Qe2 {[%emt 0:00:00]} Nd5 {[%emt 0:00:00]} 8. h4 {[%emt 0:00:00]} a5 {[%emt 0:00:00]} 9. c4 {[%emt 0:00:00]} Ba6 {[%emt 0:00:00]} 10. Nd2 {[%emt 0:00:00]} g6 {[%emt 0:00:00]} 11. Qe4 {[%emt 0:00:00]} f5 {[%emt 0:00:00]} 12. exf6 {[%emt 0:00:00]} Nxf6 {[%emt 0:00:00]} 13. Qxe7+ {[%emt 0:00:00]} Bxe7 {[%emt 0:00:00]} 14. Bd3 {[%emt 0:00:00]} O-O {[%emt 0:00:00]} 15. O-O {[%emt 0:00:00]} d5 {[%emt 0:00:00]} 16. b3 {[%emt 0:00:00]} Ng4 {[%emt 0:00:00]} 17. Nf3 {[%emt 0:00:00]} Bc5 {[%emt 0:00:00]} 18. Bg5 {[%emt 0:00:00]} dxc4 {[%emt 0:00:00]} 19. Bxc4+ {[%emt 0:00:00]} Bxc4 {[%emt 0:00:00]} 20. bxc4 {[%emt 0:00:00]} Rab8 {[%emt 0:00:00]} 21. Bd2 {[%emt 0:00:00]} a4 {[%emt 0:00:00]} 22. Ba5 {[%emt 0:00:00]} Rb2 {[%emt 0:00:00]} 23. Bxc7 {[%emt 0:00:00]} Bxf2+ {[%emt 0:00:00]} 24. Kh1 {[%emt 0:00:00]} Bc5 {[%emt 0:00:00]} 25. Bg3 {[%emt 0:00:00]} Ne3 {[%emt 0:00:00]} 26. Rf2 {[%emt 0:00:00]} a3 {[%emt 0:00:00]} 27. Rxb2 {[%emt 0:00:00]} axb2 {[%emt 0:00:00]} 28. Rb1 {[%emt 0:00:00]} Nxc4 {[%emt 0:00:00]} 29. Ne5 {[%emt 0:00:00]} Nxe5 {[%emt 0:00:00]} 30. Bxe5 {[%emt 0:00:00]} Ba3 {[%emt 0:00:00]} 31. Kg1 {[%emt 0:00:00]} Re8 {[%emt 0:00:00]} 0-1

[Event "Kvibergspelen op"]
[Site "Kvibergspelen SWE"]
[Date "2019.09.28"]
[Round "6.5"]
[White "Petersson, Baldur Teodor"]
[Black "Golubka, Petro"]
[Result "0-1"]
[ECO "B12"]
[WhiteElo "2238"]
[BlackElo "2479"]
[WhiteFideId "-1"]
[BlackFideId "-1"]
[PlyCount "84"]
[GameId "2129404755009119"]
[EventDate "2019.09.27"]
[EventType "swiss"]
[EventRounds "8"]
[EventCountry "SWE"]
[SourceTitle "10 Days #592"]
[Source "ChessMix"]
[SourceDate "2019.10.01"]
[SourceVersion "1"]
[SourceVersionDate "2019.10.01"]
[SourceQuality "1"]
[TimeControl "15/90+5:0"]
[WhiteClock "0:24:52"]
[BlackClock "0:41:05"]

1. e4 {[%emt 0:00:00]} c6 {[%emt 0:00:00]} 2. d4 {[%emt 0:00:00]} d5 {[%emt 0:00:00]} 3. e5 {[%emt 0:00:00]} Bf5 {[%emt 0:00:00]} 4. h4 {[%emt 0:00:00]} h5 {[%emt 0:00:00]} 5. Bd3 {[%emt 0:00:00]} Bxd3 {[%emt 0:00:00]} 6. Qxd3 {[%emt 0:00:00]} e6 {[%emt 0:00:00]} 7. Bg5 {[%emt 0:00:00]} Qa5+ {[%emt 0:00:00]} 8. Nd2 {[%emt 0:00:00]} Qa6 {[%emt 0:00:00]} 9. c4 {[%emt 0:00:00]} Bb4 {[%emt 0:00:00]} 10. b3 {[%emt 0:00:00]} Nd7 {[%emt 0:00:00]} 11. Ngf3 {[%emt 0:00:00]} Ne7 {[%emt 0:00:00]} 12. O-O {[%emt 0:00:00]} Nf5 {[%emt 0:00:00]} 13. a3 {[%emt 0:00:00]} Bxd2 {[%emt 0:00:00]} 14. Nxd2 {[%emt 0:00:00]} O-O {[%emt 0:00:00]} 15. Rfd1 {[%emt 0:00:00]} Rac8 {[%emt 0:00:00]} 16. Nf3 {[%emt 0:00:00]} Rfe8 {[%emt 0:00:00]} 17. Rab1 {[%emt 0:00:00]} Nb6 {[%emt 0:00:00]} 18. c5 {[%emt 0:00:00]} Qxd3 {[%emt 0:00:00]} 19. Rxd3 {[%emt 0:00:00]} Nd7 {[%emt 0:00:00]} 20. b4 {[%emt 0:00:00]} b6 {[%emt 0:00:00]} 21. Rdb3 {[%emt 0:00:00]} f6 {[%emt 0:00:00]} 22. Bf4 {[%emt 0:00:00]} Kf7 {[%emt 0:00:00]} 23. a4 {[%emt 0:00:00]} Ne7 {[%emt 0:00:00]} 24. a5 {[%emt 0:00:00]} b5 {[%emt 0:00:00]} 25. Re1 {[%emt 0:00:00]} Nf5 {[%emt 0:00:00]} 26. Rb2 {[%emt 0:00:00]} Nf8 {[%emt 0:00:00]} 27. Rbe2 {[%emt 0:00:00]} Ng6 {[%emt 0:00:00]} 28. Bg3 {[%emt 0:00:00]} Re7 {[%emt 0:00:00]} 29. exf6 {[%emt 0:00:00]} gxf6 {[%emt 0:00:00]} 30. Kh2 {[%emt 0:00:00]} Rce8 {[%emt 0:00:00]} 31. Kh3 {[%emt 0:00:00]} Kg8 {[%emt 0:00:00]} 32. Kh2 {[%emt 0:00:00]} Nf8 {[%emt 0:00:00]} 33. Rc2 {[%emt 0:00:00]} Rg7 {[%emt 0:00:00]} 34. Bd6 {[%emt 0:00:00]} Rg4 {[%emt 0:00:00]} 35. Rce2 {[%emt 0:00:00]} Ng6 {[%emt 0:00:00]} 36. Bg3 {[%emt 0:00:00]} Kf7 {[%emt 0:00:00]} 37. Rd2 {[%emt 0:00:00]} a6 {[%emt 0:00:00]} 38. Kh3 {[%emt 0:00:00]} Rg8 {[%emt 0:00:00]} 39. Rd3 {[%emt 0:00:00]} Nfxh4 {[%emt 0:00:00]} 40. Rde3 {[%emt 0:00:00]} Nxf3 {[%emt 0:00:00]} 41. gxf3 {[%emt 0:00:00]} Rxd4 {[%emt 0:00:00]} 42. Rxe6 {[%emt 0:00:00]} Rh4+ {[%emt 0:00:00]} 0-1

[Event "Kvibergspelen op"]
[Site "Kvibergspelen SWE"]
[Date "2019.09.29"]
[Round "7.2"]
[White "Golubka, Petro"]
[Black "Sorensen, Hampus"]
[Result "1-0"]
[ECO "A21"]
[WhiteElo "2479"]
[BlackElo "2319"]
[WhiteFideId "-1"]
[BlackFideId "-1"]
[PlyCount "53"]
[GameId "2129404755009136"]
[EventDate "2019.09.27"]
[EventType "swiss"]
[EventRounds "8"]
[EventCountry "SWE"]
[SourceTitle "10 Days #592"]
[Source "ChessMix"]
[SourceDate "2019.10.01"]
[SourceVersion "1"]
[SourceVersionDate "2019.10.01"]
[SourceQuality "1"]
[TimeControl "15/90+5:0"]
[WhiteClock "0:25:06"]
[BlackClock "0:45:28"]

1. c4 {[%emt 0:00:00]} e5 {[%emt 0:00:00]} 2. Nc3 {[%emt 0:00:00]} Bb4 {[%emt 0:00:00]} 3. Nd5 {[%emt 0:00:00]} Bc5 {[%emt 0:00:00]} 4. Nf3 {[%emt 0:00:00]} c6 {[%emt 0:00:00]} 5. Nc3 {[%emt 0:00:00]} d6 {[%emt 0:00:00]} 6. e3 {[%emt 0:00:00]} Qe7 {[%emt 0:00:00]} 7. Be2 {[%emt 0:00:00]} e4 {[%emt 0:00:00]} 8. Nd4 {[%emt 0:00:00]} Nf6 {[%emt 0:00:00]} 9. d3 {[%emt 0:00:00]} exd3 {[%emt 0:00:00]} 10. Qxd3 {[%emt 0:00:00]} Nbd7 {[%emt 0:00:00]} 11. O-O {[%emt 0:00:00]} Ne5 {[%emt 0:00:00]} 12. Qc2 {[%emt 0:00:00]} O-O {[%emt 0:00:00]} 13. Rd1 {[%emt 0:00:00]} Rd8 {[%emt 0:00:00]} 14. b3 {[%emt 0:00:00]} d5 {[%emt 0:00:00]} 15. cxd5 {[%emt 0:00:00]} cxd5 {[%emt 0:00:00]} 16. Bb2 {[%emt 0:00:00]} Bd7 {[%emt 0:00:00]} 17. Nf5 {[%emt 0:00:00]} Qe6 {[%emt 0:00:00]} 18. Nxd5 {[%emt 0:00:00]} Rac8 {[%emt 0:00:00]} 19. Nf4 {[%emt 0:00:00]} Qe8 {[%emt 0:00:00]} 20. Qb1 {[%emt 0:00:00]} Bc6 {[%emt 0:00:00]} 21. Nxg7 {[%emt 0:00:00]} Kxg7 {[%emt 0:00:00]} 22. Qf5 {[%emt 0:00:00]} Nfd7 {[%emt 0:00:00]} 23. Rxd7 {[%emt 0:00:00]} Bxd7 {[%emt 0:00:00]} 24. Bxe5+ {[%emt 0:00:00]} Kf8 {[%emt 0:00:00]} 25. Qg5 {[%emt 0:00:00]} f6 {[%emt 0:00:00]} 26. Qh6+ {[%emt 0:00:00]} Kg8 {[%emt 0:00:00]} 27. Bc4+ {[%emt 0:00:00]} 1-0

[Event "Kvibergspelen op"]
[Site "Kvibergspelen SWE"]
[Date "2019.09.29"]
[Round "8.1"]
[White "Golubka, Petro"]
[Black "Hillarp Persson, Tiger"]
[Result "1/2-1/2"]
[ECO "B40"]
[WhiteElo "2479"]
[BlackElo "2558"]
[WhiteFideId "-1"]
[BlackFideId "-1"]
[PlyCount "30"]
[GameId "2129404755009155"]
[EventDate "2019.09.27"]
[EventType "swiss"]
[EventRounds "8"]
[EventCountry "SWE"]
[SourceTitle "10 Days #592"]
[Source "ChessMix"]
[SourceDate "2019.10.01"]
[SourceVersion "1"]
[SourceVersionDate "2019.10.01"]
[SourceQuality "1"]
[TimeControl "15/90+5:0"]
[WhiteClock "0:38:14"]
[BlackClock "1:13:54"]

1. e4 {[%emt 0:00:00]} c5 {[%emt 0:00:00]} 2. Nf3 {[%emt 0:00:00]} e6 {[%emt 0:00:00]} 3. b3 {[%emt 0:00:00]} Nc6 {[%emt 0:00:00]} 4. Bb2 {[%emt 0:00:00]} Nf6 {[%emt 0:00:00]} 5. e5 {[%emt 0:00:00]} Ng4 {[%emt 0:00:00]} 6. h3 {[%emt 0:00:00]} Nh6 {[%emt 0:00:00]} 7. Bd3 {[%emt 0:00:00]} f6 {[%emt 0:00:00]} 8. Be4 {[%emt 0:00:00]} Nxe5 {[%emt 0:00:00]} 9. Nxe5 {[%emt 0:00:00]} fxe5 {[%emt 0:00:00]} 10. Bxe5 {[%emt 0:00:00]} Qg5 {[%emt 0:00:00]} 11. Bg3 {[%emt 0:00:00]} Nf5 {[%emt 0:00:00]} 12. Bxf5 {[%emt 0:00:00]} Qxf5 {[%emt 0:00:00]} 13. Nc3 {[%emt 0:00:00]} b6 {[%emt 0:00:00]} 14. Nb5 {[%emt 0:00:00]} Bb7 {[%emt 0:00:00]} 15. O-O {[%emt 0:00:00]} Kf7 {[%emt 0:00:00]} 1/2-1/2

[Event "SS Manhem GM"]
[Site "Molnlycke SWE"]
[Date "2019.08.12"]
[Round "4.2"]
[White "Golubka, Petro"]
[Black "Blomqvist, Erik"]
[Result "0-1"]
[ECO "B43"]
[WhiteElo "2479"]
[BlackElo "2507"]
[WhiteFideId "-1"]
[BlackFideId "-1"]
[PlyCount "38"]
[GameId "2129404756300503"]
[EventDate "2019.08.10"]
[EventType "swiss"]
[EventRounds "9"]
[EventCountry "SWE"]
[EventCategory "8"]
[SourceTitle "10 Days #588"]
[Source "ChessMix"]
[SourceDate "2019.08.20"]
[SourceVersion "1"]
[SourceVersionDate "2019.08.20"]
[SourceQuality "1"]
[TimeControl "90+30"]
[WhiteClock "0:26:09"]
[BlackClock "0:26:54"]

1. e4 {[%emt 0:00:00]} c5 {[%emt 0:00:00]} 2. Nf3 {[%emt 0:00:00]} e6 {[%emt 0:00:00]} 3. Nc3 {[%emt 0:00:00]} a6 {[%emt 0:00:00]} 4. d4 {[%emt 0:00:00]} cxd4 {[%emt 0:00:00]} 5. Nxd4 {[%emt 0:00:00]} b5 {[%emt 0:00:00]} 6. Be3 {[%emt 0:00:00]} Bb7 {[%emt 0:00:00]} 7. f3 {[%emt 0:00:00]} Nf6 {[%emt 0:00:00]} 8. Qd2 {[%emt 0:00:00]} b4 {[%emt 0:00:00]} 9. Na4 {[%emt 0:00:00]} d5 {[%emt 0:00:00]} 10. exd5 {[%emt 0:00:00]} Nxd5 {[%emt 0:00:00]} 11. Bc4 {[%emt 0:00:00]} Nd7 {[%emt 0:00:00]} 12. O-O-O {[%emt 0:00:00]} Be7 {[%emt 0:00:00]} 13. Nf5 {[%emt 0:00:00]} O-O {[%emt 0:00:00]} 14. Nxe7+ {[%emt 0:00:00]} Qxe7 {[%emt 0:00:00]} 15. Bd4 {[%emt 0:00:00]} Rfc8 {[%emt 0:00:00]} 16. Bb3 {[%emt 0:00:00]} Bc6 {[%emt 0:00:00]} 17. Rhe1 {[%emt 0:00:00]} Qd8 {[%emt 0:00:00]} 18. Kb1 {[%emt 0:00:00]} Qa5 {[%emt 0:00:00]} 19. Qg5 {[%emt 0:00:00]} Nc3+ {[%emt 0:00:00]} 0-1

[Event "SS Manhem GM"]
[Site "Molnlycke SWE"]
[Date "2019.08.14"]
[Round "7.4"]
[White "Lindgren, Philip"]
[Black "Golubka, Petro"]
[Result "1/2-1/2"]
[ECO "D97"]
[WhiteElo "2362"]
[BlackElo "2479"]
[WhiteFideId "-1"]
[BlackFideId "-1"]
[PlyCount "122"]
[GameId "2129404756300520"]
[EventDate "2019.08.10"]
[EventType "swiss"]
[EventRounds "9"]
[EventCountry "SWE"]
[EventCategory "8"]
[SourceTitle "10 Days #588"]
[Source "ChessMix"]
[SourceDate "2019.08.20"]
[SourceVersion "1"]
[SourceVersionDate "2019.08.20"]
[SourceQuality "1"]
[TimeControl "90+30"]
[WhiteClock "0:24:51"]
[BlackClock "0:01:39"]

1. c4 {[%emt 0:00:00]} Nf6 {[%emt 0:00:00]} 2. d4 {[%emt 0:00:00]} g6 {[%emt 0:00:00]} 3. Nc3 {[%emt 0:00:00]} d5 {[%emt 0:00:00]} 4. Nf3 {[%emt 0:00:00]} Bg7 {[%emt 0:00:00]} 5. Qb3 {[%emt 0:00:00]} dxc4 {[%emt 0:00:00]} 6. Qxc4 {[%emt 0:00:00]} O-O {[%emt 0:00:00]} 7. e4 {[%emt 0:00:00]} Na6 {[%emt 0:00:00]} 8. Be2 {[%emt 0:00:00]} c5 {[%emt 0:00:00]} 9. d5 {[%emt 0:00:00]} e6 {[%emt 0:00:00]} 10. O-O {[%emt 0:00:00]} exd5 {[%emt 0:00:00]} 11. exd5 {[%emt 0:00:00]} Bf5 {[%emt 0:00:00]} 12. Rd1 {[%emt 0:00:00]} Qb6 {[%emt 0:00:00]} 13. Nh4 {[%emt 0:00:00]} Bd7 {[%emt 0:00:00]} 14. Be3 {[%emt 0:00:00]} Rfe8 {[%emt 0:00:00]} 15. a3 {[%emt 0:00:00]} Rac8 {[%emt 0:00:00]} 16. h3 {[%emt 0:00:00]} h6 {[%emt 0:00:00]} 17. Nf3 {[%emt 0:00:00]} Bf5 {[%emt 0:00:00]} 18. Qb5 {[%emt 0:00:00]} Red8 {[%emt 0:00:00]} 19. Qxb6 {[%emt 0:00:00]} axb6 {[%emt 0:00:00]} 20. Rac1 {[%emt 0:00:00]} Nc7 {[%emt 0:00:00]} 21. g4 {[%emt 0:00:00]} Be4 {[%emt 0:00:00]} 22. d6 {[%emt 0:00:00]} Ne6 {[%emt 0:00:00]} 23. Nd2 {[%emt 0:00:00]} Bc6 {[%emt 0:00:00]} 24. Nc4 {[%emt 0:00:00]} Nd7 {[%emt 0:00:00]} 25. Bf1 {[%emt 0:09:26.30]} Nd4 {[%emt 0:00:00]} 26. Bg2 {[%emt 0:00:31]} Nb3 {[%emt 0:00:00]} 27. Rc2 {[%emt 0:01:28]} Nd4 {[%emt 0:00:00]} 28. Rcc1 {[%emt 0:00:17]} Nb3 {[%emt 0:00:00]} 29. Rc2 {[%emt 0:00:15]} b5 {[%emt 0:00:00]} 30. Nd2 {[%emt 0:00:33]} Nd4 {[%emt 0:00:00]} 31. Rcc1 {[%emt 0:02:41]} Ne5 {[%emt 0:00:00]} 32. Bxd4 {[%emt 0:00:55]} cxd4 {[%emt 0:00:00]} 33. Nd5 {[%emt 0:00:14]} Bf8 {[%emt 0:00:00]} 34. Ne7+ {[%emt 0:01:12]} Bxe7 {[%emt 0:00:00]} 35. dxe7 {[%emt 0:00:04]} Re8 {[%emt 0:00:00]} 36. Ne4 {[%emt 0:01:00]} Rxe7 {[%emt 0:00:00]} 37. Rxd4 {[%emt 0:00:41]} Kg7 {[%emt 0:00:00]} 38. Rc2 {[%emt 0:00:38]} Rcc7 {[%emt 0:01:09.30]} 39. f4 {[%emt 0:00:34]} Nc4 {[%emt 0:01:03]} 40. Kf2 {[%emt 0:00:28]} Rcd7 {[%emt 0:01:05]} 41. Rxd7 {[%emt 0:00:00]} Rxd7 {[%emt 0:00:00]} 42. Nc5 {[%emt 0:00:00]} Rd4 {[%emt 0:00:00]} 43. Bxc6 {[%emt 0:00:00]} bxc6 {[%emt 0:00:00]} 44. Kf3 {[%emt 0:00:00]} Rd5 {[%emt 0:00:00]} 45. Nb7 {[%emt 0:00:00]} f5 {[%emt 0:00:00]} 46. gxf5 {[%emt 0:00:00]} gxf5 {[%emt 0:00:00]} 47. a4 {[%emt 0:00:00]} Rd3+ {[%emt 0:00:00]} 48. Kf2 {[%emt 0:02:26]} Rxh3 {[%emt 0:00:00]} 49. Kg1 {[%emt 0:00:05]} Ne3 {[%emt 0:00:00]} 50. Rxc6 {[%emt 0:00:18]} bxa4 {[%emt 0:00:00]} 51. Nc5 {[%emt 0:00:41]} Ng4 {[%emt 0:00:00]} 52. Nxa4 {[%emt 0:01:59]} Rg3+ {[%emt 0:00:00]} 53. Kh1 {[%emt 0:00:13]} Rb3 {[%emt 0:00:00]} 54. Rb6 {[%emt 0:00:55]} Re3 {[%emt 0:00:00]} 55. Nc5 {[%emt 0:00:37]} Kf7 {[%emt 0:01:08]} 56. Kg2 {[%emt 0:00:24]} h5 {[%emt 0:00:21]} 57. Rb3 {[%emt 0:00:39]} Re2+ {[%emt 0:00:10]} 58. Kg3 {[%emt 0:00:08]} Rh2 {[%emt 0:00:16]} 59. Rb7+ {[%emt 0:00:43]} Kg6 {[%emt 0:01:49]} 60. Rb6+ {[%emt 0:00:12]} Kf7 {[%emt 0:00:04]} 61. Rb7+ {[%emt 0:00:04]} Kg6 {[%emt 0:00:04]} 1/2-1/2

[Event "SS Manhem GM"]
[Site "Molnlycke SWE"]
[Date "2019.08.15"]
[Round "8.5"]
[White "Golubka, Petro"]
[Black "Urkedal, Frode"]
[Result "1-0"]
[ECO "C88"]
[WhiteElo "2479"]
[BlackElo "2566"]
[WhiteFideId "-1"]
[BlackFideId "-1"]
[PlyCount "80"]
[GameId "2129404756300526"]
[EventDate "2019.08.10"]
[EventType "swiss"]
[EventRounds "9"]
[EventCountry "SWE"]
[EventCategory "8"]
[SourceTitle "10 Days #588"]
[Source "ChessMix"]
[SourceDate "2019.08.20"]
[SourceVersion "1"]
[SourceVersionDate "2019.08.20"]
[SourceQuality "1"]
[TimeControl "90+30"]
[WhiteClock "0:00:35"]
[BlackClock "0:13:37"]

1. e4 {[%emt 0:00:00]} e5 {[%emt 0:00:00]} 2. Nf3 {[%emt 0:00:00]} Nc6 {[%emt 0:00:00]} 3. Bb5 {[%emt 0:00:00]} a6 {[%emt 0:00:00]} 4. Ba4 {[%emt 0:00:00]} Nf6 {[%emt 0:00:00]} 5. O-O {[%emt 0:00:00]} Be7 {[%emt 0:00:00]} 6. Re1 {[%emt 0:00:00]} b5 {[%emt 0:00:00]} 7. Bb3 {[%emt 0:00:00]} O-O {[%emt 0:00:00]} 8. a4 {[%emt 0:00:00]} b4 {[%emt 0:00:00]} 9. d3 {[%emt 0:00:00]} d6 {[%emt 0:00:00]} 10. a5 {[%emt 0:00:00]} Rb8 {[%emt 0:00:00]} 11. Nbd2 {[%emt 0:00:00]} Na7 {[%emt 0:00:00]} 12. Nc4 {[%emt 0:00:00]} c5 {[%emt 0:00:00]} 13. c3 {[%emt 0:00:00]} Nc6 {[%emt 0:00:00]} 14. Be3 {[%emt 0:00:00]} Bg4 {[%emt 0:00:00]} 15. Bc2 {[%emt 0:00:00]} Be6 {[%emt 0:00:00]} 16. Nfd2 {[%emt 0:00:00]} Ng4 {[%emt 0:00:00]} 17. h3 {[%emt 0:00:00]} Nxe3 {[%emt 0:00:00]} 18. fxe3 {[%emt 0:00:00]} Kh8 {[%emt 0:00:00]} 19. Rf1 {[%emt 0:00:00]} g6 {[%emt 0:00:00]} 20. Kh1 {[%emt 0:00:00]} Bg5 {[%emt 0:00:00]} 21. Qf3 {[%emt 0:00:00]} f5 {[%emt 0:00:00]} 22. exf5 {[%emt 0:00:00]} d5 {[%emt 0:00:00]} 23. Ba4 {[%emt 0:00:00]} Rxf5 {[%emt 0:00:00]} 24. Qg3 {[%emt 0:00:00]} Bh4 {[%emt 0:00:00]} 25. Qh2 {[%emt 0:00:00]} dxc4 {[%emt 0:00:00]} 26. Bxc6 {[%emt 0:00:00]} cxd3 {[%emt 0:00:00]} 27. Rxf5 {[%emt 0:00:00]} Bxf5 {[%emt 0:00:00]} 28. e4 {[%emt 0:00:00]} bxc3 {[%emt 0:00:00]} 29. bxc3 {[%emt 0:00:00]} Bf6 {[%emt 0:00:49.30]} 30. exf5 {[%emt 0:00:00]} gxf5 {[%emt 0:00:03]} 31. Rf1 {[%emt 0:00:00]} Rb2 {[%emt 0:04:45]} 32. Nc4 {[%emt 0:00:00]} Re2 {[%emt 0:00:30]} 33. Qg1 {[%emt 0:00:00]} e4 {[%emt 0:03:59]} 34. Qxc5 {[%emt 0:00:00]} Qg8 {[%emt 0:03:48]} 35. Ne3 {[%emt 0:02:35.30]} d2 {[%emt 0:02:01]} 36. Qxf5 {[%emt 0:00:29]} Bxc3 {[%emt 0:00:23]} 37. Bd5 {[%emt 0:00:50]} Qd8 {[%emt 0:02:03]} 38. Bxe4 {[%emt 0:00:26]} Qg8 {[%emt 0:00:18]} 39. Nd5 {[%emt 0:02:19]} Bd4 {[%emt 0:00:45]} 40. Ne7 {[%emt 0:01:14]} Rxe4 {[%emt 0:01:31]} 1-0

[Event "SS Manhem GM"]
[Site "Molnlycke SWE"]
[Date "2019.08.16"]
[Round "9.3"]
[White "Vypkhaniuk, Ihor"]
[Black "Golubka, Petro"]
[Result "1/2-1/2"]
[ECO "D14"]
[WhiteElo "2405"]
[BlackElo "2479"]
[WhiteFideId "-1"]
[BlackFideId "-1"]
[PlyCount "24"]
[GameId "2129404756300529"]
[EventDate "2019.08.10"]
[EventType "swiss"]
[EventRounds "9"]
[EventCountry "SWE"]
[EventCategory "8"]
[SourceTitle "10 Days #588"]
[Source "ChessMix"]
[SourceDate "2019.08.20"]
[SourceVersion "1"]
[SourceVersionDate "2019.08.20"]
[SourceQuality "1"]
[TimeControl "90+30"]
[WhiteClock "1:23:18"]
[BlackClock "1:18:00"]

1. d4 {[%emt 0:00:00]} d5 {[%emt 0:00:00]} 2. c4 {[%emt 0:00:00]} c6 {[%emt 0:00:00]} 3. cxd5 {[%emt 0:00:00]} cxd5 {[%emt 0:00:00]} 4. Nc3 {[%emt 0:00:00]} Nf6 {[%emt 0:00:00]} 5. Bf4 {[%emt 0:00:00]} Nc6 {[%emt 0:00:00]} 6. Nf3 {[%emt 0:00:00]} Bf5 {[%emt 0:00:00]} 7. e3 {[%emt 0:00:00]} e6 {[%emt 0:00:00]} 8. Bd3 {[%emt 0:00:00]} Bxd3 {[%emt 0:00:00]} 9. Qxd3 {[%emt 0:00:00]} Bd6 {[%emt 0:00:00]} 10. Bxd6 {[%emt 0:00:00]} Qxd6 {[%emt 0:00:00]} 11. O-O {[%emt 0:00:00]} O-O {[%emt 0:00:00]} 12. Rac1 {[%emt 0:00:00]} Rfc8 {[%emt 0:00:00]} 1/2-1/2

[Event "UKR-ch"]
[Site "Kyiv UKR"]
[Date "2018.12.17"]
[Round "6"]
[White "Golubka, Petro"]
[Black "Kovchan, Alexander"]
[Result "1/2-1/2"]
[ECO "B90"]
[WhiteElo "2464"]
[BlackElo "2575"]
[WhiteFideId "-1"]
[BlackFideId "-1"]
[PlyCount "82"]
[GameId "2129404762902101"]
[EventDate "2018.12.11"]
[EventType "tourn"]
[EventRounds "9"]
[EventCountry "UKR"]
[EventCategory "15"]
[SourceTitle "10 Days #564"]
[Source "ChessMix"]
[SourceDate "2018.12.20"]
[SourceVersion "1"]
[SourceVersionDate "2018.12.20"]
[SourceQuality "1"]
[TimeControl "40/5400+30:1800+30"]

1. e4 {[%emt 0:01:02]} c5 {[%emt 0:00:00]} 2. Nf3 {[%emt 0:00:11]} d6 {[%emt 0:00:01]} 3. d4 {[%emt 0:00:06]} cxd4 {[%emt 0:00:08]} 4. Nxd4 {[%emt 0:00:03]} Nf6 {[%emt 0:00:11]} 5. Nc3 {[%emt 0:00:04]} a6 {[%emt 0:00:06]} 6. h4 {[%emt 0:04:03]} e5 {[%emt 0:01:28]} 7. Nb3 {[%emt 0:00:04]} Be7 {[%emt 0:00:30]} 8. Bg5 {[%emt 0:04:24]} Be6 {[%emt 0:00:21]} 9. Bxf6 {[%emt 0:00:57]} Bxf6 {[%emt 0:00:17]} 10. g3 {[%emt 0:00:08]} Be7 {[%emt 0:05:09]} 11. Nd5 {[%emt 0:12:40]} Nd7 {[%emt 0:00:38]} 12. Bh3 {[%emt 0:03:38]} Rc8 {[%emt 0:02:00]} 13. c3 {[%emt 0:00:15]} O-O {[%emt 0:01:22]} 14. Kf1 {[%emt 0:02:31]} Nb6 {[%emt 0:02:41]} 15. Ne3 {[%emt 0:03:09]} Nc4 {[%emt 0:14:05]} 16. Nxc4 {[%emt 0:02:11]} Rxc4 {[%emt 0:00:43]} 17. Nd2 {[%emt 0:02:53]} Rc6 {[%emt 0:04:20]} 18. Bxe6 {[%emt 0:04:27]} fxe6 {[%emt 0:00:13]} 19. Qe2 {[%emt 0:00:50]} Qb6 {[%emt 0:18:06]} 20. Nf3 {[%emt 0:01:43]} Qb5 {[%emt 0:07:06]} 21. Qxb5 {[%emt 0:03:03]} axb5 {[%emt 0:01:13]} 22. Kg2 {[%emt 0:09:48]} b4 {[%emt 0:01:06]} 23. cxb4 {[%emt 0:01:07]} Rc2 {[%emt 0:04:12]} 24. Rhc1 {[%emt 0:01:41]} Re2 {[%emt 0:02:10]} 25. Rc7 {[%emt 0:04:34]} Bd8 {[%emt 0:00:43]} 26. Rxb7 {[%emt 0:03:15]} d5 {[%emt 0:00:03]} 27. Rf1 {[%emt 0:03:33]} dxe4 {[%emt 0:09:10]} 28. Nxe5 {[%emt 0:01:57]} Rxb2 29. a4 {[%emt 0:11:22]} Ra2 {[%emt 0:08:28]} 30. a5 {[%emt 0:06:08]} e3 {[%emt 0:01:45]} 31. Ng4 {[%emt 0:00:14]} e2 {[%emt 0:00:41]} 32. Re1 {[%emt 0:00:07]} h5 {[%emt 0:00:16]} 33. Ne5 {[%emt 0:01:49]} Bf6 {[%emt 0:00:48]} 34. f4 {[%emt 0:00:25]} Bxe5 {[%emt 0:03:13]} 35. fxe5 {[%emt 0:01:35]} Rf5 {[%emt 0:00:02]} 36. Rb6 {[%emt 0:05:24]} Rxe5 {[%emt 0:00:15]} 37. Rc6 {[%emt 0:02:38]} Re4 {[%emt 0:04:12]} 38. a6 {[%emt 0:01:37]} Rxb4 {[%emt 0:01:07]} 39. Rxe6 {[%emt 0:00:05]} Rba4 {[%emt 0:00:15]} 40. R6xe2 {[%emt 0:00:00]} Rxa6 {[%emt 0:00:00]} 41. Rxa2 {[%emt 0:00:16]} Rxa2+ {[%emt 0:00:28]} 1/2-1/2